[Event "German-ch Blitz Women 2022"]
[Site "Magdeburg"]
[Date "2022.08.13"]
[Round "10.2"]
[White "Daemering, Katrin"]
[Black "Zhou, Lepu Coco"]
[Result "1-0"]
[ECO "B40"]
[WhiteElo "1965"]
[BlackElo "1986"]
[Annotator "NA RC"]
[PlyCount "53"]
[EventDate "2022.08.10"]
[EventType "tourn"]
[EventCountry "GER"]
[SourceTitle "playchess.com"]
[Source "ChessBase"]
[SourceQuality "1"]
[TimeControl "180+2"]

1. e4 {[%emt 0:00:01]} c5 {[%emt 0:00:01]} 2. Nf3 {[%emt 0:00:01]} e6 {[%emt 0:00:01]} 3. d4 {[%emt 0:00:01]} cxd4 {[%emt 0:00:01]} 4. Nxd4 {[%emt 0:00:02]} Nf6 {[%emt 0:00:01]} 5. Nc3 {[%emt 0:00:01]} Nc6 {[%emt 0:00:00]} 6. Be3 {[%emt 0:00:02]} Bb4 {[%emt 0:00:02]} 7. Bd3 {[%emt 0:00:02]} d5 {[%emt 0:00:01]} 8. exd5 {[%emt 0:00:02]} exd5 {[%emt 0:00:01]} 9. O-O {[%emt 0:00:15]} O-O {[%emt 0:00:03]} 10. Nce2 {[%emt 0:00:05]} Be6 {[%emt 0:00:30]} 11. h3 {[%emt 0:00:02]} Rc8 {[%emt 0:00:03]} 12. Ng3 {[%emt 0:00:06]} Bd6 {[%emt 0:00:15]} 13. c3 {[%emt 0:00:22]} Ne5 {[%emt 0:00:07]} 14. Bc2 {[%emt 0:00:02]} Nc4 {[%emt 0:00:06]} 15. Bc1 {[%emt 0:00:06]} Qb6 {[%emt 0:00:35]} 16. Rb1 {[%emt 0:00:19]} Rfe8 {[%emt 0:00:28]} 17. Qd3 {[%emt 0:00:03]} Ne5 {[%emt 0:00:09]} 18. Qe2 {[%emt 0:00:13]} Bd7 {[%emt 0:00:01]} 19. Be3 {[%emt 0:00:12]} Nc4 {[%emt 0:00:06]} 20. Nh5 {[%emt 0:00:35]} Nxh5 {[%emt 0:00:30]} 21. Qxh5 {[%emt 0:00:01]} g6 {[%emt 0:00:01]} 22. Qxd5 {[%emt 0:00:05]} Nxe3 {[%emt 0:00:04]} 23. fxe3 {[%emt 0:00:03]} Be6 {[%emt 0:00:09]} 24. Nxe6 {[%emt 0:00:06]} Rxe6 {[%emt 0:00:03]} 25. Rf3 {[%emt 0:00:17]} Bc5 {[%emt 0:00:06]} 26. Rbf1 {[%emt 0:00:07]} Bxe3+ {[%emt 0:00:16]} 27. Kh1 {[%emt 0:00:02]} 1-0

[Event "German-ch Blitz Women 2022"]
[Site "Magdeburg"]
[Date "2022.08.13"]
[Round "10.3"]
[White "Khrapko, Marharyta"]
[Black "Nikolaeva, Mariya A"]
[Result "1-0"]
[ECO "C97"]
[WhiteElo "2128"]
[BlackElo "1309"]
[Annotator "NA RC"]
[PlyCount "115"]
[EventDate "2022.08.10"]
[EventType "tourn"]
[EventCountry "GER"]
[SourceTitle "playchess.com"]
[Source "ChessBase"]
[SourceQuality "1"]
[TimeControl "180+2"]

1. e4 {[%emt 0:00:01]} e5 {[%emt 0:00:00]} 2. Nf3 {[%emt 0:00:01]} Nc6 {[%emt 0:00:01]} 3. Bb5 {[%emt 0:00:01]} a6 {[%emt 0:00:01]} 4. Ba4 {[%emt 0:00:01]} Nf6 {[%emt 0:00:02]} 5. O-O {[%emt 0:00:01]} Be7 {[%emt 0:00:01]} 6. Re1 {[%emt 0:00:01]} b5 {[%emt 0:00:00]} 7. Bb3 {[%emt 0:00:01]} d6 {[%emt 0:00:01]} 8. c3 {[%emt 0:00:02]} Na5 {[%emt 0:00:01]} 9. Bc2 {[%emt 0:00:01]} c5 {[%emt 0:00:00]} 10. h3 {[%emt 0:00:03]} O-O {[%emt 0:00:04]} 11. d4 {[%emt 0:00:01]} Qc7 {[%emt 0:00:01]} 12. Nbd2 {[%emt 0:00:03]} Be6 {[%emt 0:00:01]} 13. d5 {[%emt 0:00:05]} Bd7 {[%emt 0:00:01]} 14. b3 {[%emt 0:00:08]} Rfb8 {[%emt 0:00:02]} 15. Nf1 {[%emt 0:00:02]} Nb7 {[%emt 0:00:09]} 16. g4 {[%emt 0:00:06]} Ne8 {[%emt 0:00:05]} 17. Ng3 {[%emt 0:00:03]} g6 {[%emt 0:00:01]} 18. Bg5 {[%emt 0:00:12]} Bxg5 {[%emt 0:00:12]} 19. Nxg5 {[%emt 0:00:01]} f6 {[%emt 0:00:08]} 20. Ne6 {[%emt 0:00:11]} Bxe6 {[%emt 0:00:02]} 21. dxe6 {[%emt 0:00:02]} Ng7 {[%emt 0:00:07]} 22. Qd5 {[%emt 0:00:05]} Qe7 {[%emt 0:00:04]} 23. b4 {[%emt 0:00:09]} c4 {[%emt 0:00:03]} 24. a4 {[%emt 0:00:03]} Qxe6 {[%emt 0:00:11]} 25. Qc6 {[%emt 0:00:01]} Qc8 {[%emt 0:00:15]} 26. Qd5+ {[%emt 0:00:11]} Qe6 {[%emt 0:00:02]} 27. Qd2 {[%emt 0:00:05]} Nd8 {[%emt 0:00:12]} 28. Red1 {[%emt 0:00:04]} Nf7 {[%emt 0:00:01]} 29. Nf1 {[%emt 0:00:07]} Rd8 {[%emt 0:00:12]} 30. Ne3 {[%emt 0:00:04]} h5 {[%emt 0:00:31]} 31. Qe2 {[%emt 0:00:23]} Rab8 {[%emt 0:00:47]} 32. Nd5 {[%emt 0:00:03]} hxg4 {[%emt 0:00:07]} 33. hxg4 {[%emt 0:00:01]} Ng5 {[%emt 0:00:16]} 34. axb5 {[%emt 0:00:20]} axb5 {[%emt 0:00:01]} 35. Ra7 {[%emt 0:00:02]} Nh3+ {[%emt 0:00:08]} 36. Kh2 {[%emt 0:00:20]} Nf4 {[%emt 0:00:05]} 37. Nxf4 {[%emt 0:00:05]} exf4 {[%emt 0:00:01]} 38. Qf3 {[%emt 0:00:05]} g5 {[%emt 0:00:04]} 39. Kg2 {[%emt 0:00:05]} Rd7 {[%emt 0:00:01]} 40. Rda1 {[%emt 0:00:11]} Qe7 {[%emt 0:00:02]} 41. R7a6 {[%emt 0:00:17]} Rbd8 {[%emt 0:00:02]} 42. Rd1 {[%emt 0:00:03]} Qf7 {[%emt 0:00:02]} 43. Rd5 {[%emt 0:00:02]} Ne6 {[%emt 0:00:05]} 44. Rxb5 {[%emt 0:00:03]} Nc7 {[%emt 0:00:01]} 45. Rba5 {[%emt 0:00:03]} Nxa6 {[%emt 0:00:01]} 46. Rxa6 {[%emt 0:00:01]} Qg6 {[%emt 0:00:04]} 47. Qe2 {[%emt 0:00:04]} Qe8 {[%emt 0:00:05]} 48. Qxc4+ {[%emt 0:00:02]} Kg7 {[%emt 0:00:02]} 49. Ra1 {[%emt 0:00:05]} Qe5 {[%emt 0:00:02]} 50. Rh1 {[%emt 0:00:05]} d5 {[%emt 0:00:04]} 51. exd5 {[%emt 0:00:03]} f3+ {[%emt 0:00:03]} 52. Kxf3 {[%emt 0:00:07]} Qf4+ {[%emt 0:00:05]} 53. Qxf4 {[%emt 0:00:02]} gxf4 {[%emt 0:00:02]} 54. c4 {[%emt 0:00:02]} Rb7 {[%emt 0:00:04]} 55. Rh7+ {[%emt 0:00:01]} Kf8 {[%emt 0:00:01]} 56. Rxb7 {[%emt 0:00:01]} Rc8 {[%emt 0:00:01]} 57. c5 {[%emt 0:00:02]} Rd8 {[%emt 0:00:01]} 58. d6 {[%emt 0:00:01]} 1-0

[Event "German-ch Blitz Women 2022"]
[Site "Magdeburg"]
[Date "2022.08.13"]
[Round "10.4"]
[White "Grabowski, Petra"]
[Black "Schulze, Lara"]
[Result "0-1"]
[ECO "E12"]
[WhiteElo "1643"]
[BlackElo "2292"]
[Annotator "TA"]
[PlyCount "143"]
[EventDate "2022.08.10"]
[EventType "tourn"]
[EventCountry "GER"]
[SourceTitle "playchess.com"]
[Source "ChessBase"]
[SourceQuality "1"]
[TimeControl "180+2"]

{[%evp 10,143,3,9,43,14,42,-20,-15,-58,-45,-73,-71,-47,-28,-29,-42,-42,-25,-113,-85,-89,-83,-221,-169,-220,-215,-255,-268,-274,-262,-368,-378,-416,-355,-376,-368,-448,-325,-346,-325,-317,-314,-317,-316,-329,-314,-366,-316,-307,-277,-275,-262,-244,-208,-429,-379,-477,-359,-536,-529,-529,-529,-521,-496,-521,-503,-640,-633,-626,-614,-663,-682,-678,-652,-742,-664,-785,-768,-766,-678,-623,-609,-666,-659,-1044,-1065,-709,-576,-536,-528,-1726,-1698,-1040,-1416,-1381,-1356,-1310,-1094,-7507,-9543,-10436,-6609,-5716,-1682,-2772,-2454,-29974,-29975,-29980,-29981,-29990,-29981,-29981,-29983,-29979,0,-29976,-29976,-29985,-29978,-29978,-29979,-29979,-29977,-29985,-29983,-29985,-29986,-29985,-29986,-29987,-29988,-29988,-29989,-29989]} 1. d4 {[%emt 0:00:01] ChessBase II} Nf6 {[%emt 0:00:01]} 2. Nf3 {[%emt 0:00:01]} e6 {[%emt 0:00:01]} 3. c4 {[%emt 0:00:03]} b6 {[%emt 0:00:01]} 4. a3 {[%emt 0:00:04]} Ba6 {[%emt 0:00:03]} 5. e3 {[%emt 0:00:07]} d5 {[%emt 0:00:02]} 6. Nbd2 {[%emt 0:00:06]} Nbd7 {[%emt 0:00:06] E12: Queen's Indian: Unusual White 4th moves, 4 a3, 4 Nc3 Bb7 5 a3 and 4 Nc3 Bb7 .} 7. b4 {[%emt 0:00:03]} (7. cxd5 {looks sharper.} Bxf1 8. dxe6 Bxg2 9. Rg1) 7... c5 {[%emt 0:00:08] [#]} 8. b5 $146 {[%emt 0:00:05]} ({White should play} 8. dxc5 $14 bxc5 9. cxd5 (9. Qa4 Bb7 $11) 9... Bxf1 10. dxe6) ({Predecessor:} 8. dxc5 bxc5 9. b5 Bb7 10. Be2 a6 11. O-O Bd6 12. cxd5 exd5 13. bxa6 Bxa6 14. e4 Bxe2 15. Qxe2 {½-½ (36) Huss,A-Gelfer,I (2340) Luzern 1982 EXT 2015 [ChessBase II]}) 8... Bb7 $11 {[%emt 0:00:02] The position is equal.} 9. Nb3 {[%emt 0:00:17]} Be7 {[%emt 0:00:07]} 10. Bb2 {[%emt 0:00:07]} O-O {[%emt 0:00:03]} (10... a6 $5 {[%cal Ra6b5]}) 11. Be2 {[%emt 0:00:04]} Rc8 {[%emt 0:00:04] aiming for ...dxc4.} 12. Rc1 {[%emt 0:00:03]} Ne4 {[%emt 0:00:22]} 13. O-O {[%emt 0:00:09]} Bf6 {[%emt 0:00:01]} 14. Qc2 {[%emt 0:00:07]} (14. cxd5 $11 Bxd5 15. Nbd2) 14... dxc4 {[%emt 0:00:39] Black converts the advantage convincingly.} 15. Bxc4 {[%emt 0:00:21]} Nd6 {[%emt 0:00:15]} 16. Bd3 {[%emt 0:00:16]} (16. dxc5 $17 {was worth a try.} Nxc5 17. Be2) 16... cxd4 {[%emt 0:00:16]} 17. Qe2 {[%emt 0:00:15]} ({Don't go for} 17. Bxh7+ $2 Kh8 18. Qe2 Kxh7 $19) (17. Qb1 $142) 17... dxe3 $19 {[%emt 0:00:06]} 18. Bxf6 {[%emt 0:00:06]} exf2+ {[%emt 0:00:06]} ({Inferior is} 18... Nxf6 19. Qxe3 Nd5 20. Qe5 $17) ({Don't blunder} 18... Qxf6 $2 19. fxe3 Bd5 20. Rxc8 Rxc8 21. Nbd2 $19) 19. Qxf2 {[%emt 0:00:09]} Nxf6 {[%emt 0:00:03]} 20. Ng5 {[%emt 0:00:18]} (20. Qe3 $142) 20... Rxc1 {[%emt 0:00:08]} 21. Nxc1 {[%emt 0:00:02]} h6 {[%emt 0:00:07]} 22. Nf3 {[%emt 0:00:13]} Nde4 {[%emt 0:00:05]} 23. Qc2 {[%emt 0:00:14]} Qc8 {[%emt 0:00:09]} 24. Ne2 {[%emt 0:00:09]} Qxc2 {[%emt 0:00:03]} 25. Bxc2 {[%emt 0:00:01]} Rd8 {[%emt 0:00:06]} 26. Ned4 {[%emt 0:00:02]} Rc8 {[%emt 0:00:11]} 27. Re1 {[%emt 0:00:04]} Nd6 {[%emt 0:00:10][%cal Od6b5]} 28. Bb3 {[%emt 0:00:05]} Nc4 {[%emt 0:00:04]} 29. a4 {[%emt 0:00:05]} Bd5 {[%emt 0:00:02]} 30. Rc1 {[%emt 0:00:06]} Rc5 {[%emt 0:00:05]} 31. Bxc4 {[%emt 0:00:03]} Rxc4 {[%emt 0:00:01]} 32. Rd1 {[%emt 0:00:03]} (32. Rxc4 {is the only way for White.} Bxc4 33. Ne5) 32... Ne4 {[%emt 0:00:03]} 33. Ne2 {[%emt 0:00:04]} Nc3 {[%emt 0:00:03]} 34. Re1 {[%emt 0:00:02]} (34. Nxc3 $142 Rxc3 35. Rd4) 34... Nxe2+ {[%emt 0:00:01]} 35. Rxe2 {[%emt 0:00:00]} Bxf3 {[%emt 0:00:02]} 36. gxf3 {[%emt 0:00:02]} Rxa4 {[%emt 0:00:00][%mdl 4096] Endgame KR-KR} 37. Rc2 {[%emt 0:00:02]} Ra5 {[%emt 0:00:01]} 38. Rc8+ {[%emt 0:00:01]} Kh7 {[%emt 0:00:01]} 39. Rc7 {[%emt 0:00:02]} Kg6 {[%emt 0:00:01]} 40. Kf2 {[%emt 0:00:00]} Rxb5 {[%emt 0:00:02]} 41. Rxa7 {[%emt 0:00:02]} e5 {[%emt 0:00:03]} 42. Ke3 {[%emt 0:00:00]} f5 {[%emt 0:00:03]} 43. Rc7 {[%emt 0:00:02]} Rb3+ {[%emt 0:00:02]} 44. Ke2 {[%emt 0:00:01]} Kf6 {[%emt 0:00:03] Threatens to win with ...Rb2+.} 45. h4 {[%emt 0:00:03]} Rb4 {[%emt 0:00:11] Against Rc4} 46. h5 {[%emt 0:00:05]} e4 {[%emt 0:00:07]} 47. fxe4 {[%emt 0:00:03]} Rxe4+ {[%emt 0:00:02]} 48. Kf3 {[%emt 0:00:01]} Re6 {[%emt 0:00:02] And now ...Re7 would win.} 49. Rb7 {[%emt 0:00:02]} Rc6 {[%emt 0:00:06]} 50. Rb8 {[%emt 0:00:01]} Kg5 {[%emt 0:00:02]} 51. Rf8 {[%emt 0:00:03]} Rf6 {[%emt 0:00:01]} 52. Rg8 {[%emt 0:00:03]} g6 {[%emt 0:00:01]} 53. hxg6 {[%emt 0:00:02]} Rxg6 {[%emt 0:00:01]} 54. Rb8 {[%emt 0:00:02]} h5 {[%emt 0:00:02][%cal Bh6h5,Bh5h4][%mdl 32]} 55. Kg3 {[%emt 0:00:02]} h4+ {[%emt 0:00:02]} 56. Kh3 {[%emt 0:00:02]} Kf4 {[%emt 0:00:01]} 57. Rh8 {[%emt 0:00:03]} Ke3 {[%emt 0:00:04] Strongly threatening ...f4.} 58. Rxh4 {[%emt 0:00:02]} f4 {[%emt 0:00:01][%cal Bf5f4,Bf4f3][%mdl 32]} 59. Rh5 {[%emt 0:00:04]} f3 {[%emt 0:00:02]} 60. Re5+ {[%emt 0:00:01]} Kf2 {[%emt 0:00:00]} 61. Rf5 {[%emt 0:00:04]} Rh6+ {[%emt 0:00:02]} 62. Kg4 {[%emt 0:00:01]} Rg6+ $2 {[%emt 0:00:01]} (62... Kg2 {mates} 63. Kg5 f2 64. Kxh6 f1=Q 65. Kg6 Qd3 66. Kf6 b5 67. Re5 b4 68. Rh5 b3 69. Rg5+ Kf2 70. Rf5+ Kg3 71. Rg5+ Kf2 72. Ke6 Qe3+ 73. Kf6 {[#]} Qxg5+ $3 {[%mdl 512]} 74. Kxg5 b2 75. Kf6 b1=Q 76. Ke5 Qd1 77. Ke6 Kf3 78. Kf6 Kf4 79. Ke6 Qd8 80. Kf7 Kf5 81. Kg7 Qd7+ 82. Kh6 Qc7 83. Kh5 Qh7#) 63. Kf4 $2 {[%emt 0:00:01][%mdl 8192] [#]} (63. Kh3 $11 Rh6+ 64. Kg4) 63... Kg2 {[%emt 0:00:04] Black mates.} 64. Ke4 {[%emt 0:00:02]} Re6+ 65. Kd3 {[%emt 0:00:03]} f2 {[%emt 0:00:03]} 66. Rg5+ {[%emt 0:00:01]} Kf1 {[%emt 0:00:02]} 67. Rf5 {[%emt 0:00:02]} Rd6+ {[%emt 0:00:01]} 68. Ke3 {[%emt 0:00:01]} Ke1 {[%emt 0:00:06]} 69. Rxf2 {[%emt 0:00:05]} Re6+ {[%emt 0:00:01]} 70. Kf3 {[%emt 0:00:00]} Rf6+ {[%emt 0:00:01]} 71. Ke3 {[%emt 0:00:02]} Rxf2 {[%emt 0:00:01]} 72. Kd4 {Weighted Error Value: White=0.56/Black=0.19 (very precise)} 0-1

[Event "German-ch Blitz Women 2022"]
[Site "Magdeburg"]
[Date "2022.08.13"]
[Round "10.5"]
[White "Braun, Kristin"]
[Black "Melamed, Tatjana"]
[Result "0-1"]
[ECO "B03"]
[WhiteElo "1897"]
[BlackElo "2380"]
[Annotator "TA"]
[PlyCount "146"]
[EventDate "2022.08.10"]
[EventType "tourn"]
[EventCountry "GER"]
[SourceTitle "playchess.com"]
[Source "ChessBase"]
[SourceQuality "1"]
[TimeControl "180+2"]

{[%evp 21,146,9,29,0,4,-44,-46,-200,-197,-319,-116,-122,-120,-119,-86,-74,-80,-73,55,53,53,54,140,112,214,158,169,174,183,176,122,45,47,38,60,0,69,76,112,0,22,33,28,0,177,177,187,204,322,327,337,339,1118,562,535,427,397,-68,-68,-68,116,125,79,0,0,0,881,864,836,0,0,0,0,0,0,0,0,0,0,-77,-77,-77,-77,-78,-78,-92,-78,-92,0,-92,-92,-152,-151,-165,-163,-323,-170,-356,-364,-253,-274,-272,-60,-2856,-2425,-29967,-29966,-29965,-29964,-29973,-29974,-29972,-2389,-1464,-1095,-29967,-29972,-29974,-29975,-29984,-29976,-29983,-29984,-29984,-29985,-29985,-29986]} 1. e4 {[%emt 0:00:00]} Nf6 {[%emt 0:00:02]} 2. e5 {[%emt 0:00:02]} Nd5 {[%emt 0:00:01]} 3. d4 {[%emt 0:00:01]} d6 {[%emt 0:00:01]} 4. exd6 {[%emt 0:00:01]} cxd6 {[%emt 0:00:01]} 5. Nf3 {[%emt 0:00:01]} g6 {[%emt 0:00:03]} 6. c4 {[%emt 0:00:02]} Nb6 {[%emt 0:00:01]} 7. Nc3 {[%emt 0:00:01]} Bg7 {[%emt 0:00:01]} 8. Be2 {[%emt 0:00:01]} O-O {[%emt 0:00:02]} 9. O-O {[%emt 0:00:01]} Nc6 {[%emt 0:00:00]} 10. b3 {[%emt 0:00:09]} Bg4 {[%emt 0:00:04]} 11. Be3 {[%emt 0:00:04]} e5 {[%emt 0:00:02]} 12. d5 {[%emt 0:00:26] B04: Alekhine's Defence: 4 Nf3.} Bxf3 {[%emt 0:00:13]} 13. gxf3 {[#]} (13. Bxf3 $11 {might be stronger.} Nd4 14. Rb1) 13... Nd4 $146 {[%emt 0:00:05]} ({Predecessor:} 13... Ne7 14. Rc1 Nf5 15. Ne4 Nxe3 16. fxe3 f5 17. Nc3 Qg5+ 18. Kf2 Qh4+ 19. Kg2 Bh6 {1-0 (45) Klenner,R-Nejezchleba,J Moravia 2002}) 14. Bxd4 $2 {[%emt 0:00:47]} ({White should play} 14. Kh1 $15) 14... exd4 $19 {[%emt 0:00:02]} (14... Qg5+ 15. Kh1 exd4 16. Ne4 $17) 15. Nb5 {[%emt 0:00:01]} (15. Ne4 $142) 15... Be5 $2 {[%emt 0:00:25]} (15... a6 $19 {has better winning chances.} 16. Na3 (16. Nxd4 $2 Qg5+ 17. Kh1 Qf4 $19) 16... Be5) 16. f4 $17 {[%emt 0:00:16]} Bxf4 {[%emt 0:00:03]} 17. Nxd4 {[%emt 0:00:18]} Qh4 {[%emt 0:00:15][%csl Gf4][%cal Rh4h2]} 18. Nf3 {[%emt 0:00:01]} Qh3 {[%emt 0:00:01] 0x0.001f25e58f31dp-1022s more active pieces. The white rooks are badly placed.} 19. Qd4 {[%emt 0:00:11]} Rae8 {[%emt 0:00:29]} (19... Qh6 $17) 20. Qxf4 $14 {[%emt 0:00:16]} Rxe2 {[%emt 0:00:02]} 21. Rfe1 {[%emt 0:00:10]} Rxe1+ {[%emt 0:00:46]} (21... Rfe8 $14 22. Rxe2 Rxe2) 22. Rxe1 $16 {[%emt 0:00:01]} Nd7 {[%emt 0:00:01]} (22... Nc8 $16) 23. Re7 {[%emt 0:00:10] And now Ng5 would win.} (23. Qxd6 Qxf3 24. Qxd7 b5) 23... Nc5 {[%emt 0:00:11]} 24. Ng5 {[%emt 0:00:08]} ({Don't take} 24. Qxd6 $6 Qxf3 25. Qxc5 Qd1+ 26. Kg2 Qg4+ 27. Kf1 Qd1+ 28. Re1 Qf3 $16) 24... Qf5 {[%emt 0:00:08]} 25. Qxf5 {[%emt 0:00:07]} gxf5 $18 {[%emt 0:00:01][%mdl 4096] Endgame KRN-KRN} 26. Nf3 {[%emt 0:00:06]} (26. b4 $16 Nd3 27. Rxb7) 26... Kg7 $14 {[%emt 0:00:02]} 27. Nd4 {[%emt 0:00:03]} Kf6 {[%emt 0:00:01]} 28. Re2 {[%emt 0:00:06]} (28. Re3 $1 $14) 28... Ne4 {[%emt 0:00:04]} (28... Rg8+ $11 29. Kf1 a6) 29. f3 {[%emt 0:00:04]} Ng5 {[%emt 0:00:04]} 30. Kf2 {[%emt 0:00:04]} (30. Nb5 $16) 30... Rg8 {[%emt 0:00:01]} 31. Nb5 {[%emt 0:00:05]} Nh3+ {[%emt 0:00:02]} 32. Ke1 {[%emt 0:00:04]} (32. Ke3 $5 {[%cal Rb5d6]}) 32... Rg1+ $2 {[%emt 0:00:11]} (32... Nf4 $11 33. Rd2 Ke5) 33. Kd2 $18 {[%emt 0:00:00]} Ra1 {[%emt 0:00:02]} 34. Nxd6 {[%emt 0:00:04]} Rxa2+ {[%emt 0:00:02]} (34... Nf4 $142 35. Re3 Rxa2+ 36. Kc3 Ne2+ 37. Kb4 b6) 35. Ke3 $1 {[%emt 0:00:02]} f4+ {[%emt 0:00:02]} 36. Kd3 {[%emt 0:00:01]} Ra3 {[%emt 0:00:06]} (36... Nf2+ $2 37. Rxf2 $1 {[%mdl 512]} Rxf2 38. Ne4+ Ke7 39. Nxf2 $18) (36... Rxe2 37. Kxe2 b6) 37. Ne4+ {[%emt 0:00:01]} Kf5 {[%emt 0:00:03]} 38. Nc5 {[%emt 0:00:01]} b6 {[%emt 0:00:02] [#]} 39. Nd7 {[%emt 0:00:01]} ({Only move:} 39. d6 $1 $18 {[%cal Rd6d7]} bxc5 40. d7 Rxb3+ 41. Kc2) 39... Rxb3+ $15 {[%emt 0:00:01]} 40. Kc2 {[%emt 0:00:01]} Rxf3 {[%emt 0:00:03]} (40... Re3 $15 {stays ahead.} 41. Rxe3 fxe3) 41. Re5+ $16 {[%emt 0:00:00]} Kg6 {[%emt 0:00:01]} 42. Re7 {[%emt 0:00:03]} (42. d6 $16 Rf2+ 43. Kc3 Rf3+ 44. Kc2 Rf2+ 45. Kc3 Rf3+ 46. Kc2) 42... Ra3 {[%emt 0:00:03] Strongly threatening ...Ra2+.} 43. d6 {[%emt 0:00:03]} f3 $2 {[%emt 0:00:02][%mdl 8192]} (43... Ra2+ $11 44. Kc3 Nf2) 44. Ne5+ $18 {[%emt 0:00:01]} (44. Kb2 Ra5 45. Ne5+ Rxe5 46. Rxe5 f2 $11) 44... Kf6 {[%emt 0:00:01]} 45. Rxf7+ $2 {[%emt 0:00:01]} (45. Kb2 $18 Ra5 46. Ng4+ (46. Nxf3 Nf4 $16) 46... Kg5 47. d7 Kxg4 48. d8=Q) 45... Kxe5 {[%emt 0:00:03] KRN-KR} 46. d7 {[%emt 0:00:02]} Ra2+ {[%emt 0:00:01]} 47. Kc1 {[%emt 0:00:03]} Ra1+ {[%emt 0:00:04]} 48. Kd2 {[%emt 0:00:06]} Ra2+ {[%emt 0:00:03]} 49. Kc3 {[%emt 0:00:04]} Ra3+ {[%emt 0:00:02]} 50. Kb4 {[%emt 0:00:02]} (50. Kc2 $11 {remains equal.} Ra2+ 51. Kc3 Ra3+ 52. Kc2) 50... Rd3 $17 {[%emt 0:00:01]} 51. Rxf3 {[%emt 0:00:03] [#]} Rxd7 {[%emt 0:00:01]} 52. Rxh3 {[%emt 0:00:00] KR-KR} Rc7 {[%emt 0:00:06]} 53. Rh6 {[%emt 0:00:07]} Kd4 {[%emt 0:00:02]} 54. Rh4+ {[%emt 0:00:01]} Ke5 {[%emt 0:00:01]} 55. Rh6 $1 {[%emt 0:00:01]} Kf5 {[%emt 0:00:01]} 56. Rd6 {[%emt 0:00:02]} (56. h4 $142) 56... h5 {[%emt 0:00:01]} 57. Rd8 {[%emt 0:00:01]} Kg4 {[%emt 0:00:02]} 58. Rd2 $2 {[%emt 0:00:03]} (58. Rd3) 58... h4 {[%emt 0:00:01]} (58... Kh3 $142 {...Rg7 is the strong threat.} 59. Rb2 h4) 59. Kb5 $2 {[%emt 0:00:02]} (59. Ra2 {was forced.}) 59... Rc5+ $19 {[%emt 0:00:02]} 60. Kb4 {[%emt 0:00:01]} a5+ {[%emt 0:00:01]} 61. Kb3 {[%emt 0:00:01]} a4+ $2 {[%emt 0:00:01]} (61... Kh3 $19 {aiming for ...Rg5.} 62. Re2 Rg5) 62. Ka3 $2 {[%emt 0:00:02][%mdl 8192]} (62. Kxa4 $15 Rxc4+ 63. Kb5) 62... Rxc4 {[%emt 0:00:02]} 63. Rb2 {[%emt 0:00:01]} Kh3 {[%emt 0:00:06]} 64. Re2 {[%emt 0:00:04]} b5 65. Rd2 Rc3+ {[%emt 0:00:06]} 66. Kb2 {[%emt 0:00:02]} Rb3+ {[%emt 0:00:03]} (66... Re3 $142 67. Rc2 b4 68. Rd2 Re4 69. Kb1 Rg4 70. Rd7 Kxh2 71. Rd2+ Kh1 72. Rd3 Rg3 73. Rd8 h3 74. Kb2 Rg2+ 75. Ka1 b3 76. Ra8 h2 77. Rxa4 Kg1 78. Re4 h1=Q 79. Re1+ Kh2 80. Rxh1+ Kxh1 81. Kb1 Kg1 82. Kc1 Rc2+ 83. Kb1 Kf2 84. Ka1 Ke3 85. Kb1 Rg2 86. Ka1 Kd4 87. Kb1 Kc3 88. Kc1 Rg1#) 67. Ka2 {[%emt 0:00:00]} Kg4 {[%emt 0:00:02] ( -> ...h3)} 68. Rg2+ {[%emt 0:00:02]} Kf3 {[%emt 0:00:01] Black mates.} 69. Rc2 {[%emt 0:00:01]} Re3 {[%emt 0:00:01]} 70. Kb1 {[%emt 0:00:04]} a3 {[%emt 0:00:02]} 71. Ka2 {[%emt 0:00:01]} Re2 {[%emt 0:00:01]} 72. Rxe2 {[%emt 0:00:02]} Kxe2 {[%emt 0:00:01]} 73. Kxa3 {[%emt 0:00:00]} Kf2 {[%emt 0:00:01] Quite a comeback for Black.  Weighted Error Value: White=0.61/Black=0.46} 0-1